Cogmind - Beta 17 @@@ ROGUE MODE // 2026.08.01 @ 21:04:00 Player: f3-rnm Result: Destroyed by Triborg with Siege Cannon Performance ------------- Evolutions (2) 1000 Regions Visited (10) 2000 Robots Destroyed (70) 350 Value Destroyed (1339) 1339 Prototype IDs (30) 600 Alien Tech Used (0) 0 Bonus (9679) 9679 TOTAL SCORE: 14968 Bonus ------- Follower Combat Kills 1179 Prayed to X0-1V1 5000 Major X0-1V1 Interference 3200 Aligned with FarCom 300 Cogmind --------- Core Integrity 0/350 Matter 214/300 Energy 1181/1200 System Corruption 0% Temperature Cool (0) Movement Core (50) Location -8/Scraptown Parts ------- > --- POWER (1) -------- (None) > --- PROPULSION (3) --- Makeshift Hover Unit Combat Antigrav System > --- UTILITY (3) ------ Experimental Targeting Computer Experimental Core Analyzer > --- WEAPON (4) ------- (None) > --- INVENTORY (5) ---- Experimental Sensor Array Trap Reconfigurator 8R-AWN's Boregun Long-range Missile Launcher Longsword +1 Peak State ------------ > --- POWER ------------ Reinforced Fission Core > --- PROPULSION ------- Improved Carbon-fiber Leg Improved Carbon-fiber Leg Improved Carbon-fiber Leg > --- UTILITY ---------- Large Storage Unit Experimental Core Analyzer X0-1V1's Piety Tracker > --- WEAPON ----------- Spear Spear Spear Spear > --- INVENTORY -------- Improved Carbon-fiber Leg Makeshift Hover Unit Combat Antigrav System Experimental Heat Sink Experimental Sensor Array Experimental Targeting Computer Advanced Transmission Jammer Trap Reconfigurator 8R-AWN's Boregun Rocket Launcher Longsword +1 Deploy-a-Sentry Deploy-a-Sentry Deploy-a-Sentry Deploy-a-Sentry [Rating: 68] Favorites ----------- Power Reinforced Deuterium Engine Engine Reinforced Deuterium Engine Power Core Reinforced Fission Core Propulsion Light Treads Treads Light Treads Leg Improved Carbon-fiber Leg Wheel Compact Wheel Hover Unit Combat Antigrav System Utility Huge Storage Unit Device Improved Heat Sink Storage Huge Storage Unit Processor Experimental Core Analyzer Protection Medium Armor Plating Weapon Spear Energy Gun Small Laser Ballistic Gun Light Assault Rifle Launcher Grenade Launcher Special Weapon Plasma Cutter Impact Weapon Hammer Slashing Weapon Longsword +1 Piercing Weapon Spear Build | -11 -10 -10 -9 -9 -9 -8 -8 -8 -8 -8 ------- Run | Yrd Mat Min Mat Min Exi Min Mat Sto Rec Scr Slots Evolved 4 | . . . 2 . . . 2 . . . Power . | . . . . . . . . . . . Propulsion 1 | . . . . . . . 1 . . . Utility 2 | . . . 1 . . . 1 . . . Weapon 1 | . . . 1 . . . . . . . Parts Attached 74 | 6 2 7 14 8 18 2 11 1 1 4 Power 7 | 1 . 1 2 1 1 . 1 . . . Engine 3 | 1 . . 1 1 . . . . . . Core 4 | . . 1 1 . 1 . 1 . . . Reactor . | . . . . . . . . . . . Propulsion 22 | 2 . 2 4 1 4 2 3 1 1 2 Treads 6 | 2 . . 1 . 2 . . . 1 . Leg 8 | . . . 2 . . 2 3 1 . . Wheel 6 | . . 2 1 1 2 . . . . . Hover 2 | . . . . . . . . . . 2 Flight . | . . . . . . . . . . . Utility 18 | 1 2 2 2 2 5 . 3 . . 1 Device 10 | . 1 2 1 1 3 . 2 . . . Storage 3 | 1 1 . . . . . 1 . . . Processor 2 | . . . . . 1 . . . . 1 Hackware . | . . . . . . . . . . . Protection 3 | . . . 1 1 1 . . . . . Artifact . | . . . . . . . . . . . Weapon 27 | 2 . 2 6 4 8 . 4 . . 1 Energy Gun 5 | . . 1 4 . . . . . . . Energy Cannon . | . . . . . . . . . . . Ballistic Gun 10 | 2 . . 1 2 5 . . . . . Ballistic Cannon . | . . . . . . . . . . . Launcher 5 | . . 1 . 2 1 . . . . 1 Special Weapon 1 | . . . . . 1 . . . . . Impact Weapon 1 | . . . 1 . . . . . . . Slashing Weapon 1 | . . . . . 1 . . . . . Piercing Weapon 4 | . . . . . . . 4 . . . Special Melee Weapon . | . . . . . . . . . . . Unidentified Prototypes 7 | . . 1 . . 5 . . . . 1 Parts Lost 22 | . . 5 8 2 1 2 3 . . 1 Power 5 | . . 1 2 1 . . 1 . . . Propulsion 8 | . . 3 1 . 1 2 . . . 1 Utility 5 | . . 1 2 1 . . 1 . . . Weapon 4 | . . . 3 . . . 1 . . . Highest Loss Streak 5 | . . 3 5 2 1 2 2 . . 1 To Critical Strikes . | . . . . . . . . . . . Average Backups 14 | 1 6 8 12 19 20 19 14 11 11 9 Power 1 | . 1 1 1 1 1 . . . . . Propulsion 2 | . 1 1 1 5 2 2 3 3 3 1 Utility 5 | . 2 4 6 6 7 9 6 5 5 4 Weapon 4 | . . 1 3 5 7 7 4 3 3 3 Tool/Special . | . . . . . . . . . . . Unused Backups 18 | . . . . 6 9 . 1 . . 2 Power 5 | . . . . 1 4 . . . . . Propulsion 5 | . . . . 3 2 . . . . . Utility 7 | . . . . 2 2 . 1 . . 2 Weapon 1 | . . . . . 1 . . . . . Tool/Special . | . . . . . . . . . . . Average Slot Usage (%) 85 | . 91 92 89 91 77 92 90 78 80 75 Engine 7 | . 14 7 7 10 6 . . . . . Core 2 | . . 6 1 . 4 11 7 . . . Treads 9 | . 28 15 1 . 13 5 . . 8 . Leg 6 | . . . 14 5 . 6 25 24 18 21 Wheel 6 | . . 6 2 16 8 4 . . . . Device 8 | . . 13 15 14 2 . 4 9 9 6 Storage 12 | . 20 14 11 11 11 11 9 9 9 9 Processor 2 | . . . . . 1 11 9 9 9 11 Protection 2 | . . . 4 2 4 . . . . . Energy Gun 7 | . . 5 23 21 . . . . . . Ballistic Gun 11 | . 28 17 5 7 10 33 9 . . . Launcher 1 | . . 4 1 . . 11 1 . . 2 Slashing Weapon 2 | . . . . . 7 . . . . . Piercing Weapon 3 | . . . . . . . 22 27 27 21 Peak Build Rating 68 | 6 10 22 27 30 47 46 68 58 55 60 Average Rating 26 | 4 6 19 16 19 30 42 57 56 54 53 On Entrance 30 | . 6 10 22 16 24 47 46 58 54 55 Avg Prop Armor Cover (%) 12 | . . 14 8 8 11 . . . 20 29 Naked Turns . | . . . . . . . . . . . Heaviest Build 113 | 12 92 90 98 108 113 111 113 27 27 35 Greatest Support 54 | 40 40 40 20 26 40 30 54 54 36 54 Greatest Overweight (x) 10 | . 2 8 9 10 6 7 3 . 1 . Average Overweight (x) 3 | . . 3 5 5 4 4 . . . . Largest Inventory Capacity 25 | 8 25 25 25 25 25 25 25 15 15 15 Average Capacity 22 | 6 15 25 25 25 25 25 18 15 15 14 Most Carried 25 | 2 9 11 17 25 25 25 25 15 15 15 Average Carried 16 | 1 6 8 12 23 23 23 18 15 15 12 Final Capacity 25 | 8 25 25 25 25 25 25 15 15 15 5 Final Carried 25 | 2 8 9 17 25 24 25 15 15 15 5 Class Distribution -------------------- 57% | Mutant 19% | Scavenger-Gunner 11% | Scavenger-Mutant 9% | Scavenger-Tank Dominant Class ---------------- Mutant | -10/Materials Mutant | -10/Mines Scavenger-Gunner | -9/Materials Scavenger-Gunner | -9/Mines Mutant | -9/Exiles Gunner | -8/Mines Mutant | -8/Materials Mutant | -8/Storage Mutant | -8/Recycling Mutant | -8/Scraptown Resources | -11 -10 -10 -9 -9 -9 -8 -8 -8 -8 -8 ----------- Run | Yrd Mat Min Mat Min Exi Min Mat Sto Rec Scr Matter Collected 2317 | 200 40 233 251 284 724 102 297 . 52 134 Remotely . | . . . . . . . . . . . Salvage Created 2525 | . 184 269 579 334 574 124 314 . 52 95 Parts 200 | . 13 25 35 24 62 14 17 . 3 7 Haulers Intercepted 1 | . . . 1 . . . . . . . Recyclers Shooed 4 | . 1 1 2 . . . . . . . Parts Field Recycled . | . . . . . . . . . . . Retrieved Matter . | . . . . . . . . . . . Parts Self-Destructed . | . . . . . . . . . . . Prevented . | . . . . . . . . . . . Parts Restored . | . . . . . . . . . . . Kills | -11 -10 -10 -9 -9 -9 -8 -8 -8 -8 -8 ------- Run | Yrd Mat Min Mat Min Exi Min Mat Sto Rec Scr Combat Hostiles Destroyed 48 | . 5 13 8 3 4 7 5 . 1 2 Melee 8 | . . . . . 2 . 5 . 1 . Guns 21 | . 5 7 7 2 . . . . . . AOE 19 | . . 6 1 1 2 7 . . . 2 Classes Destroyed 15 | . 3 . 5 1 3 . . . . 3 Worker 3 | . . . 1 2 . . . . . . Builder 1 | . . . 1 . . . . . . . Tunneler 2 | . . . . 2 . . . . . . Hauler 1 | . . . 1 . . . . . . . Recycler 7 | . 1 . 1 2 . . 3 . . . Turret 1 | . . . . . 1 . . . . . Watcher 1 | . . . 1 . . . . . . . Swarmer 21 | . 3 9 . . . 4 5 . . . Grunt 15 | . 2 4 4 2 . 3 . . . . Sentry 6 | . . . 4 1 . . . . 1 . Guru 1 | . . . . . . . . . . 1 Scientist 1 | . . . . . . . . . . 1 Scrapper 1 | . . . . . . . . . . 1 Zionite 7 | . . . . . 7 . . . . . Assembled 3 | . . . . . 3 . . . . . Best Kill Streak 7 | . 3 6 7 3 2 7 3 . 1 3 Combat Bots Only 7 | . 3 6 4 1 2 7 3 . 1 2 Max Kills in Single Turn 5 | . 1 5 1 2 2 3 1 . 1 1 Gunslinging . | . . . . . . . . . . . Exploded 5 | . . 5 1 1 2 3 . . . 1 Melee 1 | . . . . . 1 . 1 . 1 . Uniques/NPCs Destroyed 4 | . . . . . 4 . . . . . 8R-AWN (-9/Exiles) EX-BIN (-9/Exiles) EX-DEC (-9/Exiles) EX-HEX (-9/Exiles) Combat | -11 -10 -10 -9 -9 -9 -8 -8 -8 -8 -8 -------- Run | Yrd Mat Min Mat Min Exi Min Mat Sto Rec Scr Hostile Shots Fired 320 | . 36 51 68 6 48 12 54 27 4 14 Missed 92 | . 11 15 12 2 14 4 15 13 2 4 Hits 228 | . 25 36 56 4 34 8 39 14 2 10 Projectile 228 | . 25 36 56 4 34 8 39 14 2 10 Critical Strikes 9 | . . . 2 . 6 . . . . 1 Damage Taken 3567 | . 311 532 800 107 551 156 704 176 25 205 Core 1008 | . 33 107 170 12 110 21 364 82 . 109 Absorbed by Shields . | . . . . . . . . . . . Ignored by Resistances 120 | . . . . 14 3 14 24 41 . 24 Core Remaining (%) 57 | 100 . 44 . . . 28 . . . . Volleys Fired 213 | . 26 40 42 13 74 5 2 . . 11 Largest 4 | . 2 2 3 3 1 1 4 . . 1 Hottest 136 | . 40 40 136 119 33 30 96 . . 43 Shots Fired 351 | . 52 73 92 34 77 4 8 . . 11 Gun 325 | . 52 70 90 31 74 . 8 . . . Cannon . | . . . . . . . . . . . Launcher 26 | . . 3 2 3 3 4 . . . 11 Special . | . . . . . . . . . . . Kinetic 231 | . 52 66 22 9 74 . 8 . . . Thermal 94 | . . 4 68 22 . . . . . . Explosive 24 | . . 3 2 1 3 4 . . . 11 Electromagnetic 2 | . . . . 2 . . . . . . Robot Hit Streak 9 | . 4 9 8 3 5 4 2 . . . Robot Miss Streak 7 | . 4 4 5 4 7 . 2 . . . Penetration Max 1 | . . . . . 1 . . . . . Secondary Targets 4 | . 1 1 2 . . . . . . . Max Gunslinging Chain 1 | . 1 1 1 . . . . . . . Shots Hit Robots 219 | . 32 42 49 17 54 3 19 . 3 . Core Hits 126 | . 13 21 22 12 26 10 9 . 1 12 Critical Kills 5 | . 1 1 . . 3 . . . . . Critical Parts Destroyed 4 | . . . . . 4 . . . . . Critical Strikes 17 | . 1 1 1 . 11 . 2 . 1 . Burn 1 | . . . 1 . . . . . . . Destroy 9 | . 1 1 . . 7 . . . . . Sever 4 | . . . . . 4 . . . . . Impale 3 | . . . . . . . 2 . 1 . Melee Attacks 69 | . . . . . 31 . 35 . 3 . Impact 1 | . . . . . 1 . . . . . Slashing 30 | . . . . . 30 . . . . . Piercing 38 | . . . . . . . 35 . 3 . Sneak Attacks 4 | . . . . . . . 3 . 1 . Combat Hostiles . | . . . . . . . . . . . Follow-up Attacks 9 | . . . . . 1 . 8 . . . Damage Inflicted 5930 | . 243 609 758 399 2167 459 492 . 105 698 Guns 1891 | . 243 336 629 235 379 . 69 . . . Cannons . | . . . . . . . . . . . Explosions 1867 | . . 273 129 164 144 459 . . . 698 Melee 2172 | . . . . . 1644 . 423 . 105 . Ramming . | . . . . . . . . . . . Kinetic 1324 | . 243 326 208 99 379 . 69 . . . Thermal 567 | . . 10 421 136 . . . . . . Explosive 1803 | . . 273 129 100 144 459 . . . 698 Electromagnetic 64 | . . . . 64 . . . . . . Impact 18 | . . . . . 18 . . . . . Slashing 1626 | . . . . . 1626 . . . . . Piercing 528 | . . . . . . . 423 . 105 . Highest Corruption 22 | . . . 19 19 22 22 . . . . Average Corruption 19 | . . . 19 19 19 22 . . . . Corruption Purged . | . . . . . . . . . . . Corruption Blocked . | . . . . . . . . . . . Effects 203 | . . . 45 55 97 6 . . . . Message Errors 41 | . . . 7 10 23 1 . . . . Matter Fused 48 | . . . 6 15 27 . . . . . Heat Flow Errors 32 | . . . 10 9 12 1 . . . . Energy Discharges 28 | . . . 7 5 15 1 . . . . Parts Rejected 1 | . . . 1 . . . . . . . Parts Fused 1 | . . . . . 1 . . . . . Data Loss (minor) 25 | . . . 6 10 7 2 . . . . Data Loss (major) 11 | . . . 2 2 7 . . . . . Misfires 5 | . . . . 2 3 . . . . . Alerts 3 | . . . 1 . 2 . . . . . Weapon Failures 8 | . . . 5 2 . 1 . . . . Overload Shots . | . . . . . . . . . . . Overflow Damage 229 | . . 31 . . 175 . 4 . . 19 Projectiles . | . . . . . . . . . . . Explosions 50 | . . 31 . . . . . . . 19 Melee 179 | . . . . . 175 . 4 . . . Knockbacks . | . . . . . . . . . . . Impact . | . . . . . . . . . . . Kinetic . | . . . . . . . . . . . Secondary . | . . . . . . . . . . . Self-Inflicted Damage 195 | . . 52 20 44 . 79 . . . . Shots 7 | . . 2 1 2 . 2 . . . . Rammed . | . . . . . . . . . . . Targets Rammed 1 | . . . . . . . 1 . . . Kicked 1 | . . . . . . . 1 . . . Crushed . | . . . . . . . . . . . Highest Temperature 327 | . 30 26 327 237 261 171 305 . . . Average Temperature 93 | . 17 10 145 65 99 69 119 . . . Received Heat Transfer 1037 | . 135 243 363 18 20 36 63 108 . 51 Effects 2 | . . . 2 . . . . . . . Interference 2 | . . . 2 . . . . . . . Siege Activations . | . . . . . . . . . . . Martial Activations . | . . . . . . . . . . . Shielding Activations . | . . . . . . . . . . . Robots Disrupted . | . . . . . . . . . . . Combat Hostiles . | . . . . . . . . . . . Robots Corrupted . | . . . . . . . . . . . Combat Hostiles . | . . . . . . . . . . . Parts Fried . | . . . . . . . . . . . Impact Corruptions . | . . . . . . . . . . . Robots Melted . | . . . . . . . . . . . Combat Hostiles . | . . . . . . . . . . . Parts Melted . | . . . . . . . . . . . Heat Transferred 1404 | . . 25 1045 334 . . . . . . Parts Sabotaged . | . . . . . . . . . . . Parts Stolen . | . . . . . . . . . . . Parts Stripped . | . . . . . . . . . . . Power Chain Reactions . | . . . . . . . . . . . Alert | -11 -10 -10 -9 -9 -9 -8 -8 -8 -8 -8 ------- Run | Yrd Mat Min Mat Min Exi Min Mat Sto Rec Scr Maximum Alert Level . | . . . . . . . . . . . Low Security (%) 100 | 100 100 100 100 100 . 100 100 100 100 . Level 1 . | . . . . . . . . . . . Level 2 . | . . . . . . . . . . . Level 3 . | . . . . . . . . . . . Level 4 . | . . . . . . . . . . . Level 5 . | . . . . . . . . . . . High Security . | . . . . . . . . . . . Max Security . | . . . . . . . . . . . Peak Influence 174 | . 60 145 150 39 . 174 100 18 20 . Initial 48 | . . . 18 . . . 48 18 . . Average 25 | . 10 38 40 4 . 141 41 5 1 . Influence Increases 1292 | . 125 310 325 149 . 194 169 . 20 . Destroy 0b10 Robot/C 860 | . 100 260 160 80 . 140 100 . 20 . Destroy 0b10 Robot/NC 75 | . 5 . 25 30 . . 15 . . . Destroy Leader 164 | . 20 30 64 10 . 20 20 . . . Allied During Kill 26 | . . . . 26 . . . . . . Disable Machine 15 | . . . 15 . . . . . . . Destroy Structure 77 | . . 20 16 3 . 34 4 . . . Lose Combat Pursuer 75 | . . . 45 . . . 30 . . . Influence Decreases 1292 | . 125 262 373 149 . 70 249 44 20 . Entered New Map 132 | . . . 30 . . . 76 26 . . Time Decay 1025 | . 125 242 288 129 . 50 153 18 20 . Lost Part 135 | . . 20 55 20 . 20 20 . . . Squads Dispatched 8 | . 1 1 2 1 . . 2 1 . . Investigation 1 | . . . . . . . 1 . . . Extermination . | . . . . . . . . . . . Reinforcement 6 | . 1 . 2 1 . . 1 1 . . Assault 1 | . . 1 . . . . . . . . Garrison . | . . . . . . . . . . . Intercept . | . . . . . . . . . . . Searches Triggered . | . . . . . . . . . . . Construction Impeded 1 | . . . . 1 . . . . . . Haulers Reinforced . | . . . . . . . . . . . Active Scanning Responses . | . . . . . . . . . . . Cargo Convoy Interrupts . | . . . . . . . . . . . Stealth | -11 -10 -10 -9 -9 -9 -8 -8 -8 -8 -8 --------- Run | Yrd Mat Min Mat Min Exi Min Mat Sto Rec Scr Distress Signals . | . . . . . . . . . . . Communications Jammed . | . . . . . . . . . . . Distress Signals . | . . . . . . . . . . . Times Spotted 131 | . 11 13 12 5 24 7 18 10 1 30 Peak Tracking Total 13 | . 3 6 6 2 9 3 7 9 1 13 Tactical Retreats 15 | . . . 2 . 11 . 2 . . . Traps | -11 -10 -10 -9 -9 -9 -8 -8 -8 -8 -8 ------- Run | Yrd Mat Min Mat Min Exi Min Mat Sto Rec Scr Traps Triggered 2 | . . . 2 . . . . . . . Indirectly . | . . . . . . . . . . . Trap Hack Attempts . | . . . . . . . . . . . Triggered . | . . . . . . . . . . . Disarmed . | . . . . . . . . . . . Reprogrammed . | . . . . . . . . . . . Reused . | . . . . . . . . . . . Traps Extracted . | . . . . . . . . . . . Installed . | . . . . . . . . . . . Triggered . | . . . . . . . . . . . Most Traps Carried 5 | . . . . 5 2 . . . . . Machines | -11 -10 -10 -9 -9 -9 -8 -8 -8 -8 -8 ---------- Run | Yrd Mat Min Mat Min Exi Min Mat Sto Rec Scr Machines Disabled 17 | . . . 1 . 11 . . . . 5 Max in Single Turn 1 | . . . 1 . 1 . . . . 1 Machines Repaired . | . . . . . . . . . . . Machines Dismantled . | . . . . . . . . . . . Machines Sabotaged . | . . . . . . . . . . . Overloaded Fab Kills . | . . . . . . . . . . . Hacking | -11 -10 -10 -9 -9 -9 -8 -8 -8 -8 -8 --------- Run | Yrd Mat Min Mat Min Exi Min Mat Sto Rec Scr Machines Accessed 1 | . . . . . 1 . . . . . Terminals . | . . . . . . . . . . . Fabricators . | . . . . . . . . . . . Repair Stations . | . . . . . . . . . . . Recycling Units . | . . . . . . . . . . . Scanalyzers . | . . . . . . . . . . . Garrison Access . | . . . . . . . . . . . Total Hacks 1 | . . . . . 1 . . . . . Successful 1 | . . . . . 1 . . . . . Failed . | . . . . . . . . . . . Catastrophic . | . . . . . . . . . . . Database Lockouts . | . . . . . . . . . . . Manual 3 | . 1 . . . 1 . . 1 . . Terminals . | . . . . . . . . . . . Fabricators . | . . . . . . . . . . . Repair Stations . | . . . . . . . . . . . Recycling Units . | . . . . . . . . . . . Scanalyzers . | . . . . . . . . . . . Garrison Access . | . . . . . . . . . . . Terminal Hacks 1 | . . . . . 1 . . . . . Proto ID Catalog 1 | . . . . . 1 . . . . . Fabricator Hacks . | . . . . . . . . . . . Repair Station Hacks . | . . . . . . . . . . . Recycling Unit Hacks . | . . . . . . . . . . . Scanalyzer . | . . . . . . . . . . . Garrison Access Hacks . | . . . . . . . . . . . Unauthorized Hacks . | . . . . . . . . . . . Terminals . | . . . . . . . . . . . Fabricators . | . . . . . . . . . . . Repair Stations . | . . . . . . . . . . . Recycling Units . | . . . . . . . . . . . Scanalyzers . | . . . . . . . . . . . Garrison Access . | . . . . . . . . . . . Data Cores Recovered . | . . . . . . . . . . . Used . | . . . . . . . . . . . Hacking Detections . | . . . . . . . . . . . Full Trace Events . | . . . . . . . . . . . Feedback Events . | . . . . . . . . . . . Feedback Blocked . | . . . . . . . . . . . Robot Schematics Acquired . | . . . . . . . . . . . Robots Built . | . . . . . . . . . . . Authchips . | . . . . . . . . . . . Time . | . . . . . . . . . . . Total Robot Build Rating . | . . . . . . . . . . . Part Schematics Acquired . | . . . . . . . . . . . Parts Built . | . . . . . . . . . . . Authchips . | . . . . . . . . . . . Time . | . . . . . . . . . . . Total Part Build Rating . | . . . . . . . . . . . Part Studies Acquired . | . . . . . . . . . . . Parts Repaired . | . . . . . . . . . . . Time . | . . . . . . . . . . . Parts Recycled . | . . . . . . . . . . . Recycled Matter . | . . . . . . . . . . . Retrieved Matter . | . . . . . . . . . . . Retrieved Components . | . . . . . . . . . . . Parts Scanalyzed . | . . . . . . . . . . . Part Schematics Acquired . | . . . . . . . . . . . Parts Damaged . | . . . . . . . . . . . Bothacking | -11 -10 -10 -9 -9 -9 -8 -8 -8 -8 -8 ------------ Run | Yrd Mat Min Mat Min Exi Min Mat Sto Rec Scr Used RIF Installer . | . . . . . . . . . . . Robots Hacked . | . . . . . . . . . . . Non-combat . | . . . . . . . . . . . Combat . | . . . . . . . . . . . Robot Hacks Applied . | . . . . . . . . . . . Relay Couplers Released . | . . . . . . . . . . . Fabnet Peak Effective % . | . . . . . . . . . . . Robots Rewired . | . . . . . . . . . . . Allies Hacked . | . . . . . . . . . . . Hacks Repelled . | . . . . . . . . . . . Allies | -11 -10 -10 -9 -9 -9 -8 -8 -8 -8 -8 -------- Run | Yrd Mat Min Mat Min Exi Min Mat Sto Rec Scr Total Allies 7 | . . . . 6 . . . . . 1 Largest Group 6 | . . . . 6 3 . . . . 1 Highest-Rated Group 446 | . . . . 112 70 . . . . 446 Highest-Rated Ally 446 | . . . . 31 31 . . . . 446 Total Orders 1 | . . . . . 1 . . . . . STAY 1 | . . . . . 1 . . . . . Ally Attacks 87 | . . . . 2 10 . . . . 75 Total Damage 5511 | . . . . 43 34 . . . . 5434 Kills 44 | . . . . 1 . . . . . 43 Allies Corrupted . | . . . . . . . . . . . Allies Melted . | . . . . . . . . . . . Turrets Deployed 4 | . . . . . . . . . . 4 X0-1V1 Amusement Gains 223 | . 7 10 20 10 60 . 60 . . 56 Good Acts 4 | . . 1 . 2 . . 1 . . . Bad Acts 20 | . . 4 4 7 . . 2 2 . 1 Intel | -11 -10 -10 -9 -9 -9 -8 -8 -8 -8 -8 ------- Run | Yrd Mat Min Mat Min Exi Min Mat Sto Rec Scr Active Infowar (turns) 1 | . . . . . 1 . . . . . Sensors 1 | . . . . . 1 . . . . . Robot Analysis Total . | . . . . . . . . . . . Derelict Logs Recovered 3 | . . 2 . 1 . . . . . . Drone Launches . | . . . . . . . . . . . Drone Recoveries . | . . . . . . . . . . . Exploration | -11 -10 -10 -9 -9 -9 -8 -8 -8 -8 -8 ------------- Run | Yrd Mat Min Mat Min Exi Min Mat Sto Rec Scr Turns Passed 7307 | 83 705 1076 891 1236 2113 100 379 89 288 347 Spaces Moved 3093 | 50 213 412 225 694 828 20 182 72 118 279 Core 13 | 6 . . . . . . . . . 7 Treads 816 | 44 213 160 12 . 264 8 . . 115 . Legs 605 | . . . 124 . . 9 182 72 3 215 Wheels 1602 | . . 252 89 694 564 3 . . . . Hover 57 | . . . . . . . . . . 57 Flight . | . . . . . . . . . . . Fastest Speed 50 | 50 160 175 175 135 150 150 120 120 120 50 Average Speed 200 | 146 214 232 322 166 219 423 150 120 236 108 Slowest Speed 750 | 160 320 320 750 230 320 610 330 120 240 120 Overloaded Moves . | . . . . . . . . . . . Propulsion Burnouts . | . . . . . . . . . . . Robots Hopped . | . . . . . . . . . . . Potential Cave-ins . | . . . . . . . . . . . Cave-ins Triggered . | . . . . . . . . . . . Exploration Rate (%) 39 | 5 38 94 27 97 84 5 17 18 20 30 Regions Visited 10 Branch Regions 7 Pre-discovered Areas 1 | . . 1 . . . . . . . . Known Exits Taken 2 | . . . 1 . . . 1 . . . Unknown Exits Taken 8 | 1 1 1 . 1 1 1 . 1 1 . Scrap Searched 4 | . . 1 . 1 . . . . . 2 Spaces Dug 5 | . . . . . 1 . 4 . . . Terrain Destroyed 280 | . . 23 18 3 49 46 4 . . 137 Melee 5 | . . . . . 1 . 4 . . . Projectile 21 | . . . . . 21 . . . . . AOE 251 | . . 23 18 3 24 46 . . . 137 Terrain Rammed . | . . . . . . . . . . . Walls Destroyed . | . . . . . . . . . . . Machines Disabled . | . . . . . . . . . . . Actions | -11 -10 -10 -9 -9 -9 -8 -8 -8 -8 -8 --------- Run | Yrd Mat Min Mat Min Exi Min Mat Sto Rec Scr Total 3833 | 57 421 471 304 753 1034 32 249 73 121 318 Wait 211 | . 172 6 4 . 17 . 10 . . 2 Move 3084 | 49 212 411 224 693 827 19 182 71 117 279 Hop . | . . . . . . . . . . . Pick Up 83 | 2 8 4 11 23 24 2 4 . . 5 Fast Attach 37 | 6 . 3 13 2 3 2 6 1 1 . Attach 41 | . 2 4 6 4 18 1 2 . . 4 Detach 14 | . . 1 3 . 8 1 . . . 1 Swap 16 | . . . 1 3 5 1 4 1 . 1 Drop 79 | . 1 2 . 15 27 1 18 . . 15 Fire 213 | . 26 40 42 13 74 5 2 . . 11 Melee 54 | . . . . . 30 . 21 . 3 . Ram . | . . . . . . . . . . . Kick . | . . . . . . . . . . . Crush . | . . . . . . . . . . . Escape Stasis . | . . . . . . . . . . . Rewire 1 | . . . . . 1 . . . . . Trap . | . . . . . . . . . . . Miscellaneous . | . . . . . . . . . . . Route ------- -11/Scrapyard -10/Materials (discovered 3 exits: [*Mat] / [*Min] / [*Sub]) -10/Mines (discovered 3 exits: [*Mat x2] / [*Sub]) -9/Materials (discovered 2 exits: *Min x2) -9/Mines (discovered 3 exits: *Mat x2 / *Exi) -9/Exiles (discovered 2 exits: [*Min x2]) -8/Mines -8/Materials -8/Storage -8/Recycling -8/Scraptown History --------- Turn | Location | Event 5 | -11/Scrapyard | Discovered new exit (range 14) 84 | -11/Scrapyard | Entered Materials 313 | -10/Materials | Build established: Mutant 335 | -10/Materials | Discovered new exit (range 13) 666 | -10/Materials | Discovered new exit (range 16) 727 | -10/Materials | Discovered new exit (range 8) 752 | -10/Materials | Prayed at D.C.S.S. Altar Unit 789 | -10/Materials | Entered Mines 790 | -10/Mines | Learned location of Storage (-8) 930 | -10/Mines | Met a Derelict bent on vengeance 1238 | -10/Mines | Received a Rocket Launcher from a helpful Derelict 1385 | -10/Mines | Learned 2 Materials zone layouts 1392 | -10/Mines | Lost 3 parts (1p1n1u) 1399 | -10/Mines | Discovered new exit (range 4) 1532 | -10/Mines | X0-1V1 sent hostile S-10 Pest (x6) 1538 | -10/Mines | Core integrity fell below 50% 1606 | -10/Mines | Discovered new exit (range 17) 1747 | -10/Mines | Found a damaged Exp. Sensor Array with a note attached 1750 | -10/Mines | Found Prototype Device 1818 | -10/Mines | Discovered new exit (range 9) 1865 | -10/Mines | Entered Materials 1865 | -9/Materials | Evolved 2 slots: Utility x1, Weapon x1 1866 | -9/Materials | Identified exit to Mines 1964 | -9/Materials | System corruption reached 10% 2048 | -9/Materials | Lost 5 parts (1p1n1u2w) 2366 | -9/Materials | Build established: Scavenger-Tank 2738 | -9/Materials | X0-1V1 sent you into danger 2756 | -9/Materials | Entered Mines 2772 | -9/Mines | Found a hidden stash of uninstalled traps 2888 | -9/Mines | TH resistance permanently improved by X0-1V1 (+20%; -200 max core) 3037 | -9/Mines | Build established: Scavenger-Mutant 3051 | -9/Mines | Assisted by bots powering up and referring to "LRC-V3" 3154 | -9/Mines | X0-1V1 sent you into danger 3172 | -9/Mines | X0-1V1 upgraded hostiles (x1) 3333 | -9/Mines | Discovered new exit (range 8) 3339 | -9/Mines | Deemed a non-threat by the Exiles lab entrance 3339 | -9/Mines | Discovered new exit (range 5) 3458 | -9/Mines | Build established: Scavenger-Tank 3495 | -9/Mines | X0-1V1 mutated your Utility slot to Weapon slot 3761 | -9/Mines | Joined a pair of Derelicts in attacking an 0b10 outpost 3806 | -9/Mines | Build established: Scavenger-Gunner 3884 | -9/Mines | Discovered new exit (range 7) 3889 | -9/Mines | Received a Mining Laser from a helpful Derelict 3992 | -9/Mines | Entered Exiles 3992 | -9/Exiles | Accompanied by 3 allies 4022 | -9/Exiles | Led the pair of lost Derelicts to a safe place 4068 | -9/Exiles | Met 8R-AWN 4119 | -9/Exiles | Met EX-HEX 4208 | -9/Exiles | Met EX-BIN 4252 | -9/Exiles | Aligned with FarCom system 4256 | -9/Exiles | Given EX-Vault access code 4329 | -9/Exiles | Opened EX-Vault 4355 | -9/Exiles | Found Longsword +1 4362 | -9/Exiles | Found Trap Reconfigurator 4366 | -9/Exiles | Found Deploy-a-Sentry 4371 | -9/Exiles | Found Deploy-a-Sentry 4376 | -9/Exiles | Found Deploy-a-Sentry 4445 | -9/Exiles | Warned to stay clear of 0b10 Research branches 4711 | -9/Exiles | Build established: Mutant 4853 | -9/Exiles | Discovered new exit (range 14) 5021 | -9/Exiles | Met EX-DEC 5142 | -9/Exiles | Attacked by the Exiles 5190 | -9/Exiles | Discovered new exit (range 14) 5274 | -9/Exiles | Destroyed 8R-AWN 5281 | -9/Exiles | Found Prototype Ballistic Gun 5281 | -9/Exiles | Identified 8R-AWN's Boregun 5295 | -9/Exiles | Found Prototype Processor 5565 | -9/Exiles | Identified Exp. Sensor Array 5661 | -9/Exiles | Destroyed EX-BIN 5675 | -9/Exiles | Core integrity fell below 50% 5722 | -9/Exiles | Destroyed EX-DEC 5773 | -9/Exiles | Destroyed EX-HEX 5823 | -9/Exiles | Found Deploy-a-Sentry 5839 | -9/Exiles | Found Prototype Processor 5840 | -9/Exiles | Identified Exp. Core Analyzer 6090 | -9/Exiles | Build established: Scavenger-Gunner 6105 | -9/Exiles | Stole three prototypes: Trap Reconfigurator, Longsword +1, Deploy-a-Sentry 6105 | -9/Exiles | Entered Mines 6111 | -8/Mines | Discovered new exit (range 11) 6140 | -8/Mines | Destroyed 7 combat bots 6205 | -8/Mines | Entered Materials 6205 | -8/Materials | Evolved 2 slots: Propulsion x1, Utility x1 6206 | -8/Materials | Identified exit to Storage 6517 | -8/Materials | Core integrity fell below 50% 6532 | -8/Materials | Core integrity fell below 20% 6534 | -8/Materials | X0-1V1 rescued you from certain death 6584 | -8/Materials | Entered Storage 6624 | -8/Storage | Build established: Mutant 6668 | -8/Storage | Used back door to open Recycling access 6668 | -8/Storage | Discovered new exit (range 5) 6673 | -8/Storage | Entered Recycling 6901 | -8/Recycling | Scanned before Scraplab entrance 6937 | -8/Recycling | Entered Scraplab 6956 | -8/Recycling | Discovered new exit (range 3) 6961 | -8/Recycling | Entered Scraptown 7190 | -8/Scraptown | Visited Shadow of the Wyrm 7201 | -8/Scraptown | X0-1V1 brought Wyrm Statue to life 7201 | -8/Scraptown | Attacked by Scraptown defenders 7206 | -8/Scraptown | DAS Turret deployed 7214 | -8/Scraptown | DAS Turret deployed 7215 | -8/Scraptown | DAS Turret deployed 7220 | -8/Scraptown | DAS Turret deployed 7229 | -8/Scraptown | Identified Exp. Targeting Computer 7308 | -8/Scraptown | Destroyed by Triborg with Siege Cannon Last Messages --------------- 07287_ Destroyed Lgt. Deuterium Engine. 07289_ 7P-CQ6(j) destroyed. 07292_ H1-PK5(x) destroyed. 07293_ Acquired Imp. Carbon-fiber Leg. 07295_ The unstable cave ceiling collapses. 07296_ ANNOUNCEMENT: Triborg tracking relay activated. Stay clear or you only have yourself to blame! 07298_ The unstable cave ceiling collapses. 07301_ Dropped Lrg. Storage Unit. 07302_ Dropped Exp. Heat Sink. 07303_ The unstable cave ceiling collapses. 07303_ Acquired Lrn. Missile Launcher. 07304_ Dropped Imp. Carbon-fiber Leg. 07305_ Acquired 8R-AWN's Boregun. 07307_ Acquired 4 matter. 07308_ The unstable cave ceiling collapses. 07308_ K1-UB2(j) destroyed. 07308_ Siege Slug penetrates Earth. 07308_ Penetrated by Siege Slug. 07308_ X0-1V1 guffaws! Map ----- +----------------------------------------------------+ | ?????????????????????# #?#" ??? ???????????? | | ?????????????????????# #?#" ? "????????????? | | ?????????????????????# #?#" """ "????????????? | | ????????????????????## ###" "????????????? | | ??????????"""######## ##"""""" ""#"??????????? | | ????????? !!% %= ????? | | ????????? = ????? | | ????????? ????? | | ??????????########### % ##########"" """"#?????? | | ????????????????????## ##??????????? ??????????? | | ????????????????##???# #########???????????????? | | ???????????????? ??; """"""""#???????????????? | | ???????????????### ### " ""#???????????????? | | ???????????????#"" """ "#???????????????? | | ???????????????#" """ " ""#???????????????? | | ???????????????#" " """""""#???????????????? | | ???????????????#" ##"""####???????????????? | | ???????????????#" "" " ! #?######????????????????? | | ???????????????#" " DD######]####?????????????? | | ???????????????#"""""" DD# t#!!tt ##????????????? | | ?????????????""####### %%[ %=/=/ t####???????????? | | ????????????## # ; %!%= [ / # #???????????? | | ???????????## % ## != !! = # #???????????? | | ????????? !%! ! [[= = = #???????????? | | ???????? =% %! [%! %!%% # ##???????????? | | ????????###### #! # = @%=!! # #???????????? | | ?????????????# # # %= ![ %! !=##???????????? | | ?????????????# # % # %=# !%# #### #??????? | | ????????????"""" %! %[ ?????? | | ????????????" """ ! % ?????? | | ?????????+ """ ?????? | | ??????????"" " " %[ ?????? | | ?????????#" # %! = E ?????? | | ?????????#" """ #% %= ## # # ?????? | | ??????????? "" ?# ##### ???????? | | ??????????? """ ?? ! ##????# # #???????? | | ??????????? ? = ???????# ?????????? | | ?????????? "?? [ = ????????# ?????????? | | ??????????" ""??? [ %& ????????? ??????????? | | ??????????""""?????# ! #?????????#????????????? | | ??????????##???????# ??????????????? ? | | ???????????????????# #???????????????# | | ???????????????????# #???????????????# | | ???????????###?????# ## || ??????????# | | ?????????? ????# ## """"#????????# | | ?????????? ???# ## | | #????????# | | ?????????# ??# ## """"#????????# | | ?????????# ??# ## || #????????# | | ?????????# ?# #? ?????????# | | ?????????# # #### ############ | +----------------------------------------------------+ Best States ------------- Heat Dissipation 54 Energy Generation 19 Energy Capacity 1410 Matter Stores 300 Matter Capacity 300 Sight Range 18 Terrain Scan Density 10 Armor Coverage 225 Resistance: TH 20 Evasion (%) 55 Targeting Accuracy 12 Core Analysis 8 Recoil Reduction 2 Item Schematics ----------------- None Robot Schematics ------------------ None Fabricated ------------ Nothing Repaired ---------- Nothing Studied --------- None Alien Tech Used ----------------- None Achievements -------------- None Challenges ------------ None Game ------ Seed ChainHoverAxe Manual? 0 Play Time 00:36:07 Cumulative 547.9 hours Start 2026.07.31 @ 00:07:34 End 2026.08.01 @ 21:04:00 Sessions 5 Manual Loads 0 Difficulty Rogue Special Mode None Game No. 455 Rogue 419 Adventurer 36 Explorer 0 Win Type - Total 27 Types 10/1/14/0/0/1/1/0/0/0 Lore% 74 Gallery% 86 Achievement% 74 Wizard Run 0 Options --------- Layout 0 ASCII 0 Keyboard 0 Movement Mouse Keybinds 0 Fullscreen 1 Font 18/SmallcapsGlow Map View 76x50 Zoom Use 0% Tactical HUD 1 Map Filters NONE Filters NONE Steam 1 RUN: fab9da69-29e8-4631-b1fb-436c433b39b0